fUSD/lending_fUSD_20250905
["ID","MTS","AMOUNT","RATE_DAILY","PERIOD"]
[383632795,1757051448060,-500.0,0.00024657,2]
[383632797,1757051448070,-500.0,0.00024657,2]
[383632799,1757051448079,-404.04982066,0.00024657,2]
[383632801,1757051448089,-407.82594476,0.00024657,2]
[383632803,1757051448099,-400.0,0.00024657,2]
[383632805,1757051448108,-411.27941416,0.00024657,2]
[383632807,1757051448117,-400.0,0.00024657,2]
[383632809,1757051448127,-400.0,0.00024657,2]
[383632811,1757051448138,-400.0,0.00024657,2]
[383632813,1757051448147,-400.0,0.00024657,2]
[383632815,1757051448156,-400.0,0.00024657,2]
[383632817,1757051448165,-400.0,0.00024657,2]
[383632819,1757051448175,-400.0,0.00024657,2]
[383632821,1757051448184,-400.0,0.00024657,2]
[383632823,1757051448193,-400.0,0.00024657,2]
[383632825,1757051448202,-400.0,0.00024657,2]
[383632827,1757051448212,-400.0,0.00024657,2]
[383632829,1757051448221,-405.90142649,0.00024657,2]
[383632831,1757051448230,-400.0,0.00024657,2]
[383632833,1757051448239,-400.0,0.00024657,2]
[383632835,1757051448249,-400.0,0.00024657,2]
[383632837,1757051448258,-192.55390218,0.00024657,2]
[383632839,1757051448267,-400.0,0.00024657,2]
[383632841,1757051448276,-400.0,0.00024657,2]
[383632843,1757051448285,-400.0,0.00024657,2]
[383632845,1757051448295,-400.0,0.00024657,2]
[383632847,1757051448304,-400.0,0.00024657,2]
[383632849,1757051448313,-400.0,0.00024657,2]
[383632851,1757051448322,-400.0,0.00024657,2]
[383632853,1757051448332,-400.0,0.00024657,2]
[383632855,1757051448341,-400.0,0.00024657,2]
[383632862,1757051448392,-400.0,0.00024657,2]
[383632864,1757051448406,-400.0,0.00024657,2]
[383632866,1757051448416,-400.0,0.00024657,2]
[383632868,1757051448425,-400.0,0.00024657,2]
[383632870,1757051448434,-400.0,0.00024657,2]
[383632872,1757051448444,-403.74539331,0.00024657,2]
[383632874,1757051448454,-423.46523252,0.00024657,2]
[383632876,1757051448463,-400.0,0.00024657,2]
[383632878,1757051448473,-400.0,0.00024657,2]
[383632880,1757051448483,-400.0,0.00024657,2]
[383632882,1757051448492,-400.0,0.00024657,2]
[383632884,1757051448501,-400.0,0.00024657,2]
[383632886,1757051448510,-400.0,0.00024657,2]
[383632888,1757051448520,-411.49755259,0.00024657,2]
[383632890,1757051448529,-400.0,0.00024657,2]
[383632892,1757051448538,-423.83429462,0.00024657,2]
[383632893,1757051448547,-400.0,0.00024657,2]
[383632895,1757051448556,-400.0,0.00024657,2]
[383632897,1757051448566,-400.0,0.00024657,2]
[383632899,1757051448575,-400.0,0.00024657,2]
[383632901,1757051448584,-400.0,0.00024657,2]
[383632903,1757051448594,-400.0,0.00024657,2]
[383632905,1757051448604,-400.0,0.00024657,2]
[383632907,1757051448613,-400.0,0.00024657,2]
[383632909,1757051448622,-400.0,0.00024657,2]
[383632911,1757051448631,-410.90457669,0.00024657,2]
[383632913,1757051448640,-400.0,0.00024657,2]
[383632915,1757051448649,-400.0,0.00024657,2]
[383632917,1757051448658,-401.7046586,0.00024657,2]
[383632919,1757051448667,-408.77941502,0.00024657,2]
[383632922,1757051448677,-400.0,0.00024657,2]
[383632923,1757051448686,-400.0,0.00024657,2]
[383632925,1757051448696,-400.0,0.00024657,2]
[383632927,1757051448705,-400.0,0.00024657,2]
[383632929,1757051448714,-337.6664715,0.00024657,2]
[383632932,1757051448724,-400.0,0.00024657,2]
[383632933,1757051448733,-400.0,0.00024657,2]
[383632935,1757051448744,-400.0,0.00024657,2]
[383632938,1757051448753,-400.0,0.00024657,2]
[383632939,1757051448763,-400.0,0.00024657,2]
[383632941,1757051448773,-400.0,0.00024657,2]
[383632943,1757051448783,-400.0,0.00024657,2]
[383632946,1757051448792,-400.0,0.00024657,2]
[383632948,1757051448802,-410.84454424,0.00024657,2]
[383632949,1757051448811,-400.0,0.00024657,2]
[383632951,1757051448821,-400.0,0.00024657,2]
[383632953,1757051448830,-400.0,0.00024657,2]
[383632955,1757051448839,-400.0,0.00024657,2]
[383632957,1757051448849,-400.0,0.00024657,2]
[383632959,1757051448858,-400.0,0.00024657,2]
[383632961,1757051448868,-400.0,0.00024657,2]
[383632963,1757051448877,-400.0,0.00024657,2]
[383632965,1757051448886,-162.6772865,0.00024657,2]
[383632967,1757051448895,-400.0,0.00024657,2]
[383632968,1757051448905,-400.0,0.00024657,2]
[383632969,1757051448914,-533.05,0.00024657,2]
[383632970,1757051448923,-400.0,0.00024657,2]
[383632971,1757051448933,-400.0,0.00024657,2]
[383632972,1757051448943,-400.0,0.00024657,2]
[383632973,1757051448952,-402.93555182,0.00024657,2]
[383632974,1757051448961,-400.0,0.00024657,2]
[383632975,1757051448970,-413.65616126,0.00024657,2]
[383632976,1757051448979,-184.2,0.00024657,2]
[383632977,1757051448988,-400.0,0.00024657,2]
[383632979,1757051448997,-400.0,0.00024657,2]
[383632980,1757051449008,-405.64735027,0.00024657,2]
[383632982,1757051449018,-400.0,0.00024657,2]
[383632984,1757051449027,-400.0,0.00024657,2]
[383632986,1757051449036,-400.0,0.00024657,2]
[383632988,1757051449046,-413.22694958,0.00024657,2]
[383632990,1757051449055,-400.0,0.00024657,2]
[383632992,1757051449064,-407.6223482,0.00024657,2]
[383632994,1757051449074,-400.0,0.00024657,2]
[383632996,1757051449083,-400.0,0.00024657,2]
[383632998,1757051449092,-400.0,0.00024657,2]
[383633000,1757051449102,-400.0,0.00024657,2]
[383633002,1757051449111,-406.5720469,0.00024657,2]
[383633004,1757051449122,-400.0,0.00024657,2]
[383633006,1757051449131,-400.0,0.00024657,2]
[383633008,1757051449140,-1000.0,0.00024657,2]
[383633010,1757051449150,-400.0,0.00024657,2]
[383633012,1757051449159,-400.0,0.00024657,2]
[383633015,1757051449176,-400.0,0.00024657,2]
[383633017,1757051449189,-400.0,0.00024657,2]
[383633019,1757051449200,-400.0,0.00024657,2]
[383633021,1757051449209,-402.90972056,0.00024657,2]
[383633023,1757051449219,-400.0,0.00024657,2]
[383633025,1757051449228,-405.20336718,0.00024657,2]
[383633027,1757051449238,-407.53900162,0.00024657,2]
[383633029,1757051449248,-1094.46,0.00024657,2]
[383633031,1757051449257,-407.02994781,0.00024657,2]
[383633033,1757051449267,-400.0,0.00024657,2]
[383633035,1757051449276,-400.0,0.00024657,2]
[383633037,1757051449285,-400.0,0.00024657,2]
[383633039,1757051449295,-400.0,0.00024657,2]
[383633041,1757051449303,-400.0,0.00024657,2]
[383633043,1757051449313,-400.0,0.00024657,2]
[383633045,1757051449323,-400.0,0.00024657,2]
[383633047,1757051449332,-400.0,0.00024657,2]
[383633049,1757051449341,-400.0,0.00024657,2]
[383633052,1757051449351,-405.76373568,0.00024657,2]
[383633054,1757051449360,-402.97454495,0.00024657,2]
[383633056,1757051449370,-400.0,0.00024657,2]
[383633058,1757051449379,-400.0,0.00024657,2]
[383633060,1757051449388,-458.47,0.00024657,2]
[383633062,1757051449398,-400.0,0.00024657,2]
[383633063,1757051449411,-400.0,0.00024657,2]
[383633065,1757051449420,-400.0,0.00024657,2]
[383633067,1757051449430,-400.0,0.00024657,2]
[383633070,1757051449439,-423.98,0.00024657,2]
[383633072,1757051449448,-404.6588837,0.00024657,2]
[383633073,1757051449457,-400.0,0.00024657,2]
[383633076,1757051449467,-400.0,0.00024657,2]
[383633077,1757051449476,-402.61594242,0.00024657,2]
[383633079,1757051449486,-400.0,0.00024657,2]
[383633082,1757051449495,-231.45831914,0.00024657,2]
[383633084,1757051449504,-400.0,0.00024657,2]
[383633086,1757051449514,-400.0,0.00024657,2]
[383633088,1757051449524,-400.0,0.00024657,2]
[383633090,1757051449533,-400.0,0.00024657,2]
[383633092,1757051449542,-400.0,0.00024657,2]
[383633094,1757051449551,-400.0,0.00024657,2]
[383633096,1757051449561,-400.0,0.00024657,2]
[383633098,1757051449570,-400.0,0.00024657,2]
[383633100,1757051449580,-400.0,0.00024657,2]
[383633102,1757051449589,-400.0,0.00024657,2]
[383633104,1757051449598,-400.0,0.00024657,2]
[383633106,1757051449607,-400.0,0.00024657,2]
[383633108,1757051449616,-500.0,0.00024657,2]
[383633110,1757051449625,-400.0,0.00024657,2]
[383633112,1757051449633,-500.0,0.00024657,2]
[383633114,1757051449643,-401.80355432,0.00024657,2]
[383633116,1757051449652,-400.0,0.00024657,2]
[383633118,1757051449661,-500.0,0.00024657,2]
[383633120,1757051449670,-400.0,0.00024657,2]
[383633121,1757051449680,-626.14247695,0.00024657,2]
[383633124,1757051449689,-400.0,0.00024657,2]
[383633126,1757051449698,-405.18839378,0.00024657,2]
[383633127,1757051449708,-400.0,0.00024657,2]
[383633129,1757051449717,-401.32291934,0.00024657,2]
[383633131,1757051449726,-400.0,0.00024657,2]
[383633133,1757051449735,-635.0,0.00024657,2]
[383633135,1757051449745,-400.0,0.00024657,2]
[383633137,1757051449754,-400.0,0.00024657,2]
[383633139,1757051449763,-400.0,0.00024657,2]
[383633141,1757051449772,-402.50508613,0.00024657,2]
[383633143,1757051449781,-400.0,0.00024657,2]
[383633145,1757051449790,-400.0,0.00024657,2]
[383633147,1757051449800,-237.39,0.00024657,2]
[383633149,1757051449808,-400.0,0.00024657,2]
[383633151,1757051449817,-401.54548526,0.00024657,2]
[383633153,1757051449827,-400.0,0.00024657,2]
[383633155,1757051449836,-400.0,0.00024657,2]
[383633157,1757051449845,-500.0,0.00024657,2]
[383633159,1757051449855,-500.0,0.00024657,2]
[383633161,1757051449864,-1000.0,0.00024657,2]
[383633163,1757051449873,-500.0,0.00024657,2]
[383633165,1757051449882,-500.0,0.00024657,2]
[383633167,1757051449891,-401.28737873,0.00024657,2]
[383633169,1757051449901,-400.0,0.00024657,2]
[383633170,1757051449910,-400.0,0.00024657,2]
[383633171,1757051449919,-400.0,0.00024657,2]
[383633172,1757051449929,-405.05346748,0.00024657,2]
[383633173,1757051449938,-400.0,0.00024657,2]
[383633174,1757051449947,-400.0,0.00024657,2]
[383633175,1757051449956,-400.0,0.00024657,2]
[383633176,1757051449965,-400.0,0.00024657,2]
[383633177,1757051449974,-400.0,0.00024657,2]
[383633178,1757051449982,-402.3700375,0.00024657,2]
[383633179,1757051449992,-400.0,0.00024657,2]
[383633180,1757051450001,-400.0,0.00024657,2]
[383633181,1757051450010,-400.0,0.00024657,2]
[383633182,1757051450019,-400.0,0.00024657,2]
[383633183,1757051450028,-400.0,0.00024657,2]
[383633184,1757051450037,-400.0,0.00024657,2]
[383633185,1757051450046,-400.0,0.00024657,2]
[383633186,1757051450056,-400.0,0.00024657,2]
[383633187,1757051450065,-400.0,0.00024657,2]
[383633188,1757051450074,-211.28599572,0.00024657,2]
[383633189,1757051450083,-400.0,0.00024657,2]
[383633190,1757051450092,-400.0,0.00024657,2]
[383633191,1757051450101,-400.49064816,0.00024657,2]
[383633192,1757051450111,-400.0,0.00024657,2]
[383633193,1757051450120,-400.0,0.00024657,2]
[383633194,1757051450129,-400.0,0.00024657,2]
[383633195,1757051450140,-400.0,0.00024657,2]
[383633196,1757051450150,-401.76028379,0.00024657,2]
[383633197,1757051450160,-400.0,0.00024657,2]
[383633198,1757051450170,-400.0,0.00024657,2]
[383633199,1757051450180,-400.0,0.00024657,2]
[383633200,1757051450190,-400.0,0.00024657,2]
[383633201,1757051450199,-400.0,0.00024657,2]
[383633202,1757051450210,-161.36,0.00024657,2]
[383633203,1757051450220,-400.0,0.00024657,2]
[383633204,1757051450230,-487.36412925,0.00024657,2]
[383633206,1757051450244,-400.0,0.00024657,2]
[383633207,1757051450254,-400.0,0.00024657,2]
[383633208,1757051450265,-400.0,0.00024657,2]
[383633209,1757051450275,-400.0,0.00024657,2]
[383633210,1757051450285,-400.0,0.00024657,2]
[383633211,1757051450295,-400.0,0.00024657,2]
[383633212,1757051450306,-500.0,0.00024657,2]
[383633213,1757051450316,-500.0,0.00024657,2]
[383633214,1757051450326,-500.0,0.00024657,2]
[383633215,1757051450336,-400.0,0.00024657,2]
[383633216,1757051450346,-500.0,0.00024657,2]
[383633218,1757051450356,-405.15807412,0.00024657,2]
[383633220,1757051450366,-401.38927241,0.00024657,2]
[383633222,1757051450376,-400.0,0.00024657,2]
[383633224,1757051450387,-400.0,0.00024657,2]
[383633226,1757051450398,-407.65621798,0.00024657,2]
[383633228,1757051450411,-400.0,0.00024657,2]
[383633230,1757051450422,-400.0,0.00024657,2]
[383633233,1757051450432,-400.0,0.00024657,2]
[383633235,1757051450441,-400.0,0.00024657,2]
[383633237,1757051450453,-400.0,0.00024657,2]
[383633239,1757051450462,-400.0,0.00024657,2]
[383633241,1757051450473,-400.0,0.00024657,2]
[383633243,1757051450484,-531.46,0.00024657,2]
[383633245,1757051450494,-402.02246502,0.00024657,2]
[383633247,1757051450504,-518.19,0.00024657,2]
[383633249,1757051450514,-747.32,0.00024657,2]
[383633251,1757051450524,-400.0,0.00024657,2]
[383633253,1757051450534,-400.0,0.00024657,2]
[383633255,1757051450544,-400.0,0.00024657,2]
[383633257,1757051450554,-410.8782402,0.00024657,2]
[383633259,1757051450564,-403.94477063,0.00024657,2]
[383633261,1757051450574,-400.0,0.00024657,2]
[383633263,1757051450584,-401.52546348,0.00024657,2]
[383633265,1757051450594,-400.0,0.00024657,2]
[383633267,1757051450604,-400.0,0.00024657,2]
[383633270,1757051450614,-206.98613954,0.00024657,2]
[383633272,1757051450624,-400.0,0.00024657,2]
[383633274,1757051450633,-402.68729021,0.00024657,2]
[383633276,1757051450643,-401.41860681,0.00024657,2]
[383633278,1757051450653,-400.0,0.00024657,2]
[383633280,1757051450663,-400.0,0.00024657,2]
[383633282,1757051450672,-400.0,0.00024657,2]
[383633284,1757051450682,-400.0,0.00024657,2]
[383633286,1757051450691,-401.2803999,0.00024657,2]
[383633288,1757051450702,-400.0,0.00024657,2]
[383633290,1757051450712,-2971.25,0.00024657,2]
[383633292,1757051450721,-400.0,0.00024657,2]
[383633294,1757051450731,-400.0,0.00024657,2]
[383633296,1757051450741,-500.0,0.00024657,2]
[383633298,1757051450751,-195.13267331,0.00024657,2]
[383633300,1757051450761,-404.64352623,0.00024657,2]
[383633303,1757051450771,-1141.89,0.00024657,2]
[383633305,1757051450781,-400.0,0.00024657,2]
[383633307,1757051450790,-400.0,0.00024657,2]
[383633309,1757051450800,-400.0,0.00024657,2]
[383633311,1757051450810,-400.0,0.00024657,2]
[383633313,1757051450820,-400.0,0.00024657,2]
[383633315,1757051450830,-400.0,0.00024657,2]
[383633317,1757051450840,-400.0,0.00024657,2]
[383633319,1757051450849,-400.0,0.00024657,2]
[383633321,1757051450859,-216.382573,0.00024657,2]
[383633323,1757051450869,-400.0,0.00024657,2]
[383633325,1757051450879,-400.0,0.00024657,2]
[383633327,1757051450889,-400.0,0.00024657,2]
[383633329,1757051450899,-400.0,0.00024657,2]
[383633331,1757051450909,-400.0,0.00024657,2]
[383633334,1757051450919,-400.0,0.00024657,2]
[383633336,1757051450929,-400.0,0.00024657,2]
[383633338,1757051450939,-400.0,0.00024657,2]
[383633340,1757051450949,-400.0,0.00024657,2]
[383633342,1757051450959,-400.0,0.00024657,2]
[383633344,1757051450969,-400.0,0.00024657,2]
[383633346,1757051450980,-404.2490526,0.00024657,2]
[383633348,1757051450991,-400.0,0.00024657,2]
[383633350,1757051451001,-400.0,0.00024657,2]
[383633352,1757051451011,-460.5,0.00024657,2]
[383633353,1757051451022,-400.0,0.00024657,2]
[383633354,1757051451032,-400.0,0.00024657,2]
[383633355,1757051451042,-400.0,0.00024657,2]
[383633356,1757051451052,-400.0,0.00024657,2]
[383633357,1757051451062,-400.0,0.00024657,2]
[383633358,1757051451072,-402.96847817,0.00024657,2]
[383633359,1757051451082,-500.0,0.00024657,2]
[383633360,1757051451091,-500.0,0.00024657,2]
[383633361,1757051451102,-500.0,0.00024657,2]
[383633363,1757051451111,-400.0,0.00024657,2]
[383633365,1757051451121,-500.0,0.00024657,2]
[383633367,1757051451131,-404.3732451,0.00024657,2]
[383633369,1757051451145,-400.0,0.00024657,2]
[383633371,1757051451154,-400.0,0.00024657,2]
[383633373,1757051451166,-400.0,0.00024657,2]
[383633376,1757051451176,-400.0,0.00024657,2]
[383633378,1757051451186,-400.0,0.00024657,2]
[383633380,1757051451196,-402.24945748,0.00024657,2]
[383633382,1757051451206,-400.0,0.00024657,2]
[383633384,1757051451216,-440.62916833,0.00024657,2]
[383633386,1757051451226,-400.0,0.00024657,2]
[383633388,1757051451236,-400.0,0.00024657,2]
[383633390,1757051451247,-153.228316,0.00024658,7]
[383633392,1757051451257,-151.0,0.00024658,7]
[383633394,1757051451268,-151.0,0.00024658,7]
[383633396,1757051451279,-151.0,0.00024658,7]
[383633398,1757051451289,-151.0,0.00024658,7]
[383633400,1757051451299,-151.0,0.00024658,7]
[383633403,1757051451310,-151.0,0.00024658,7]
[383633405,1757051451319,-151.0,0.00024658,7]
[383633407,1757051451329,-151.0,0.00024658,7]
[383633409,1757051451339,-151.0,0.00024658,7]
[383633411,1757051451349,-270.406393,0.00024658,7]
[383633413,1757051451359,-863.31289393,0.00024663,2]
[383633415,1757051451369,-500.0,0.00024673,2]
[383633417,1757051451380,-500.0,0.00024673,2]
[383633419,1757051451390,-643.55616848,0.00024673,2]
[383633421,1757051451403,-503.29584081,0.00024673,2]
[383633423,1757051451413,-464.63534969,0.00024673,2]
[383633424,1757051451423,-501.40113649,0.00024673,2]
[383633425,1757051451433,-504.98609994,0.00024673,2]
[383633426,1757051451444,-503.42772203,0.00024673,2]
[383633427,1757051451454,-500.0,0.00024673,2]
[383633428,1757051451464,-501.54984894,0.00024673,2]
[383633429,1757051451474,-500.0,0.00024673,2]
[383633430,1757051451484,-500.80992563,0.00024673,2]
[383633431,1757051451495,-500.0,0.00024673,2]
[383633432,1757051451505,-500.0,0.00024673,2]
[383633433,1757051451516,-500.0,0.00024673,2]
[383633434,1757051451526,-500.0,0.00024673,2]
[383633435,1757051451536,-508.97629836,0.00024673,2]
[383633436,1757051451545,-500.0,0.00024673,2]
[383633437,1757051451556,-500.0,0.00024673,2]
[383633438,1757051451566,-212.0727568,0.00024674,3]
[383633439,1757051451576,-150.0,0.00024674,3]
[383633440,1757051451586,-537.0,0.000247,20]
[383633441,1757051451596,-2100.0,0.000247,9]
[383633442,1757051451606,-205.52730009,0.00024773,2]
[383633443,1757051451616,-501.05666983,0.00024773,2]
[383633444,1757051451626,-500.0,0.00024773,2]
[383633445,1757051451636,-500.0,0.00024773,2]
[383633446,1757051451646,-500.0,0.00024773,2]
[383633447,1757051451657,-168.0,0.00024798,2]
[383633448,1757051451667,-500.0,0.00024799,2]
[383633449,1757051451677,-500.0,0.00024799,2]
[383633450,1757051451687,-500.0,0.00024799,2]
[383633451,1757051451697,-500.0,0.00024799,2]
[383633452,1757051451706,-500.0,0.00024799,2]
[383633453,1757051451717,-500.0,0.00024799,2]
[383633454,1757051451727,-500.0,0.00024799,2]
[383633455,1757051451737,-152.70877039,0.00024799,2]
[383633456,1757051451748,-500.0,0.00024799,2]
[383633457,1757051451758,-500.0,0.00024799,2]
[383633458,1757051451768,-500.0,0.00024799,2]
[383633459,1757051451778,-500.0,0.00024799,2]
[383633460,1757051451788,-500.0,0.00024799,2]
[383633461,1757051451798,-500.0,0.00024799,2]
[383633463,1757051451808,-150.0,0.00024799,2]
[383633465,1757051451818,-500.0,0.00024799,2]
[383633466,1757051451827,-500.0,0.00024799,2]
[383633468,1757051451837,-500.0,0.00024799,2]
[383633470,1757051451847,-80996.29239053,0.000248,2]
[383633472,1757051451857,-3008.77109099,0.000248,3]
[383633473,1757051451867,-178.39501043,0.000248,2]
[383633474,1757051451877,-3200.0,0.000248,9]
[383633475,1757051451887,-555885.501292,0.000248,3]
[383633476,1757051451897,-209.40437684,0.0002481,2]
[383633477,1757051451907,-2297.50094211,0.00024831,2]
[383633478,1757051451917,-500.0,0.00024843,2]
[383633479,1757051451927,-500.0,0.00024843,2]
[383633480,1757051451937,-325.6167365,0.00024853,2]
[383633481,1757051451948,-206.17391796,0.00024853,2]
[383633482,1757051451958,-500.0,0.00024853,2]
[383633483,1757051451968,-200.0,0.00024854,2]
[383633484,1757051451979,-200.0,0.00024854,2]
[383633485,1757051451989,-168.0,0.00024865,2]
[383633486,1757051451998,-500.0,0.00024883,2]
[383633487,1757051452008,-87034.62041413,0.00024884,2]
[383633488,1757051452018,-151.0,0.00024885,2]
[383633489,1757051452031,-2089.04008136,0.00024886,3]
[383633490,1757051452041,-500.0,0.00024889,2]
[383633491,1757051452051,-454.01278207,0.00024894,2]
[383633492,1757051452061,-500.0,0.00024899,2]
[383633493,1757051452071,-500.0,0.00024899,2]
[383633494,1757051452081,-4200.0,0.000249,9]
[383633495,1757051452091,-3825.18000692,0.000249,2]
[383633496,1757051452102,-155.27,0.00024907,2]
[383633497,1757051452112,-151.51,0.0002491,2]
[383633498,1757051452122,-500.0,0.00024929,2]
[383633499,1757051452132,-500.0,0.0002493,2]
[383633500,1757051452142,-500.0,0.0002493,2]
[383633501,1757051452151,-500.0,0.0002493,2]
[383633502,1757051452161,-500.0,0.0002493,2]
[383633503,1757051452172,-500.0,0.0002493,2]
[383633504,1757051452183,-500.0,0.0002493,2]
[383633505,1757051452193,-150.0,0.0002493,2]
[383633506,1757051452203,-500.0,0.0002493,2]
[383633507,1757051452212,-400.0,0.00024931,2]
[383633508,1757051452222,-201.54271687,0.00024931,2]
[383633509,1757051452232,-518.98394426,0.00024931,2]
[383633510,1757051452242,-402.1580183,0.00024931,2]
[383633511,1757051452252,-400.0,0.00024931,2]
[383633512,1757051452262,-400.0,0.00024931,2]
[383633513,1757051452272,-400.0,0.00024931,2]
[383633514,1757051452282,-400.0,0.00024931,2]
[383633515,1757051452291,-400.0,0.00024931,2]
[383633516,1757051452303,-400.0,0.00024931,2]
[383633517,1757051452313,-409.33861806,0.00024931,2]
[383633518,1757051452323,-405.70201596,0.00024931,2]
[383633519,1757051452333,-400.0,0.00024931,2]
[383633520,1757051452343,-403.47240914,0.00024931,2]
[383633521,1757051452353,-400.0,0.00024931,2]
[383633522,1757051452363,-400.0,0.00024931,2]
[383633523,1757051452374,-400.0,0.00024931,2]
[383633524,1757051452384,-405.47212167,0.00024931,2]
[383633525,1757051452394,-412.5499774,0.00024931,2]
[383633526,1757051452408,-400.0,0.00024931,2]
[383633527,1757051452418,-400.0,0.00024931,2]
[383633528,1757051452429,-400.0,0.00024931,2]
[383633529,1757051452605,-400.0,0.00024931,2]
[383633530,1757051452633,-400.0,0.00024931,2]
[383633531,1757051452643,-234.48764012,0.00024931,2]
[383633532,1757051452652,-409.26240763,0.00024931,2]
[383633533,1757051452662,-400.0,0.00024931,2]
[383633534,1757051452671,-400.0,0.00024931,2]
[383633535,1757051452680,-400.0,0.00024931,2]
[383633536,1757051452690,-400.0,0.00024931,2]
[383633537,1757051452699,-400.0,0.00024931,2]
[383633538,1757051452709,-400.0,0.00024931,2]
[383633539,1757051452719,-405.78602343,0.00024931,2]
[383633540,1757051452730,-400.0,0.00024931,2]
[383633541,1757051452739,-400.0,0.00024931,2]
[383633542,1757051452749,-400.0,0.00024931,2]
[383633543,1757051452759,-419.53303514,0.00024931,2]
[383633544,1757051452768,-400.0,0.00024931,2]
[383633545,1757051452778,-400.0,0.00024931,2]
[383633546,1757051452787,-408.1044911,0.00024931,2]
[383633547,1757051452797,-400.0,0.00024931,2]
[383633548,1757051452806,-400.0,0.00024931,2]
[383633549,1757051452816,-400.0,0.00024931,2]
[383633550,1757051452826,-400.0,0.00024931,2]
[383633551,1757051452835,-420.30107985,0.00024931,2]
[383633552,1757051452844,-400.0,0.00024931,2]
[383633553,1757051452854,-400.0,0.00024931,2]
[383633554,1757051452864,-400.0,0.00024931,2]
[383633555,1757051452876,-492.82592755,0.00024931,2]
[383633556,1757051452886,-400.0,0.00024931,2]
[383633557,1757051452895,-400.0,0.00024931,2]
[383633558,1757051452905,-400.0,0.00024931,2]
[383633559,1757051452915,-400.0,0.00024931,2]
[383633560,1757051452924,-400.0,0.00024931,2]
[383633561,1757051452934,-400.0,0.00024931,2]
[383633562,1757051452943,-400.0,0.00024931,2]
[383633563,1757051452952,-400.0,0.00024931,2]
[383633564,1757051452962,-400.0,0.00024931,2]
[383633565,1757051452971,-400.0,0.00024931,2]
[383633566,1757051452981,-400.0,0.00024931,2]
[383633567,1757051452991,-400.0,0.00024931,2]
[383633568,1757051453001,-228.50072446,0.00024931,2]
[383633569,1757051453011,-400.0,0.00024931,2]
[383633570,1757051453020,-403.35038279,0.00024931,2]
[383633571,1757051453030,-400.0,0.00024931,2]
[383633572,1757051453039,-400.0,0.00024931,2]
[383633573,1757051453049,-400.0,0.00024931,2]
[383633574,1757051453059,-400.0,0.00024931,2]
[383633575,1757051453068,-400.0,0.00024931,2]
[383633576,1757051453078,-400.0,0.00024931,2]
[383633577,1757051453088,-403.95821543,0.00024931,2]
[383633578,1757051453097,-400.0,0.00024931,2]
[383633579,1757051453107,-400.0,0.00024931,2]
[383633580,1757051453117,-400.0,0.00024931,2]
[383633581,1757051453126,-400.0,0.00024931,2]
[383633582,1757051453135,-400.0,0.00024931,2]
[383633583,1757051453145,-400.0,0.00024931,2]
[383633584,1757051453154,-402.25326868,0.00024931,2]
[383633585,1757051453164,-400.0,0.00024931,2]
[383633586,1757051453174,-400.0,0.00024931,2]